bitfinex/quotes_BTCUSD_20240810
["timestamp","ask_amount","ask_price","bid_price","bid_amount"]
[1723292215532,0.000832,60958.0,60957.0,1.14015317]
[1723292219108,0.000832,60958.0,60957.0,1.00392043]
[1723292219302,0.000832,60958.0,60957.0,1.11926613]
[1723292219508,0.000832,60958.0,60957.0,1.29161586]
[1723292220137,0.000832,60958.0,60957.0,1.19996613]
[1723292220337,0.000832,60958.0,60957.0,1.11926613]
[1723292220582,0.000832,60958.0,60957.0,1.19996613]
[1723292220926,0.000832,60958.0,60957.0,1.37231586]
[1723292221349,0.000832,60958.0,60957.0,1.19996613]
[1723292221774,0.000832,60958.0,60957.0,1.44042979]
[1723292221987,0.000832,60958.0,60957.0,1.06373335]
[1723292222216,0.000832,60958.0,60957.0,1.43960961]
[1723292223549,0.000832,60958.0,60957.0,1.03591022]
[1723292225170,0.000832,60958.0,60957.0,0.89968335]
[1723292225386,0.000832,60958.0,60957.0,1.03591788]
[1723292225599,0.000832,60958.0,60957.0,0.89968335]
[1723292225812,0.000832,60958.0,60957.0,1.03591788]
[1723292226518,0.000832,60958.0,60957.0,0.26359668]
[1723292226757,0.000832,60958.0,60957.0,0.34429668]
[1723292227003,0.000832,60958.0,60957.0,0.20806215]
[1723292227190,0.000832,60958.0,60957.0,0.34430454]
[1723292227848,0.000832,60958.0,60957.0,0.35430454]
[1723292228822,0.000832,60958.0,60957.0,0.35430456]
[1723292233008,0.000832,60958.0,60957.0,0.35430475]
[1723292236246,0.000832,60958.0,60957.0,0.34430475]
[1723292237978,0.000832,60958.0,60957.0,0.50835475]
[1723292238178,0.000832,60958.0,60957.0,0.34430475]
[1723292240515,0.000832,60958.0,60957.0,0.26227975]
[1723292240902,0.000832,60958.0,60957.0,0.34430475]
[1723292241338,0.000832,60958.0,60957.0,0.50835475]
[1723292242815,0.000832,60958.0,60957.0,0.34430475]
[1723292243182,0.000832,60958.0,60957.0,0.20806215]
[1723292243384,0.000832,60958.0,60957.0,0.3443024]
[1723292246583,0.000832,60958.0,60957.0,0.20806215]
[1723292246780,0.000832,60958.0,60957.0,0.34430464]
[1723292247051,0.000832,60958.0,60957.0,0.20806215]
[1723292247222,0.000832,60958.0,60957.0,0.34430482]
[1723292247798,0.144855,60958.0,60957.0,0.18157982]
[1723292248000,0.144855,60958.0,60957.0,0.26227982]
[1723292248644,0.308902,60958.0,60957.0,0.25127982]
[1723292249029,0.310902,60958.0,60957.0,0.25127982]
[1723292249257,0.308902,60958.0,60957.0,0.25127982]
[1723292249481,0.310902,60958.0,60957.0,0.25127982]
[1723292250387,0.310902,60958.0,60957.0,0.25128817]
[1723292253736,0.310902,60958.0,60957.0,0.11503715]
[1723292253957,0.310902,60958.0,60957.0,0.25129029]
[1723292257366,0.310902,60958.0,60957.0,0.2512887]
[1723292257802,0.310902,60958.0,60957.0,0.25128718]
[1723292258462,0.248902,60958.0,60957.0,0.11503715]
[1723292259403,0.248902,60958.0,60957.0,0.25129044]
[1723292259881,0.248902,60958.0,60957.0,0.17059044]
[1723292260379,0.248902,60958.0,60957.0,0.11503715]
[1723292260640,0.248902,60958.0,60957.0,0.25129049]
[1723292262956,0.084855,60958.0,60957.0,0.25129049]
[1723292264745,0.002832,60958.0,60957.0,0.48991549]
[1723292264944,0.002832,60958.0,60957.0,0.40789049]
[1723292265848,0.000832,60958.0,60957.0,0.40789049]
[1723292266460,0.000832,60958.0,60957.0,0.48991549]
[1723292267212,0.000832,60958.0,60957.0,0.40789049]
[1723292267634,0.000832,60958.0,60957.0,0.40989049]
[1723292267815,0.000832,60958.0,60957.0,0.35566215]
[1723292268028,0.000832,60958.0,60957.0,0.48133338]
[1723292268227,0.000832,60958.0,60957.0,0.48633338]
[1723292269476,0.000832,60958.0,60957.0,0.36066215]
[1723292269656,0.000832,60958.0,60957.0,0.48649689]
[1723292270292,0.000832,60958.0,60957.0,0.39579689]
[1723292270509,0.000832,60958.0,60957.0,0.48649689]
[1723292271161,0.000832,60958.0,60957.0,0.48149689]
[1723292271389,0.000832,60958.0,60957.0,0.48249689]
[1723292271816,0.000832,60958.0,60957.0,0.48049689]
[1723292272195,0.000832,60958.0,60957.0,0.48449689]
[1723292272991,0.000832,60958.0,60957.0,0.35866215]
[1723292273208,0.000832,60958.0,60957.0,0.4886988]
[1723292274123,0.000832,60958.0,60957.0,0.6527488]
[1723292276172,0.000832,60958.0,60957.0,0.4886988]
[1723292276396,0.000832,60958.0,60957.0,0.35866215]
[1723292276559,0.000832,60958.0,60957.0,0.48865209]
[1723292277420,0.000832,60958.0,60957.0,0.47865209]
[1723292278011,0.000832,60958.0,60957.0,0.48865209]
[1723292278419,0.000832,60958.0,60957.0,0.65270209]
[1723292280001,0.000832,60958.0,60957.0,0.65300213]
[1723292281379,0.000832,60958.0,60957.0,0.64300213]
[1723292281787,0.000832,60958.0,60957.0,0.64307169]
[1723292281988,0.000832,60958.0,60957.0,0.65307169]
[1723292282540,0.000832,60958.0,60957.0,0.52271215]
[1723292282715,0.000832,60958.0,60957.0,0.47902169]
[1723292282868,0.000832,60958.0,60957.0,0.48902169]
[1723292285393,0.000832,60958.0,60957.0,0.47902169]
[1723292285592,0.000832,60958.0,60957.0,0.41292169]
[1723292286039,0.000832,60958.0,60957.0,0.41291811]
[1723292286646,0.000832,60958.0,60957.0,0.32741811]
[1723292286979,0.000832,60958.0,60957.0,0.33041811]
[1723292287636,0.000832,60958.0,60957.0,0.32741811]
[1723292288035,0.000832,60958.0,60957.0,0.32941811]
[1723292288443,0.001832,60958.0,60957.0,0.32941811]
[1723292289759,0.000832,60958.0,60957.0,0.19906215]
[1723292289979,0.000832,60958.0,60957.0,0.32936204]
[1723292290209,0.001832,60958.0,60957.0,0.19706215]
[1723292290434,0.000832,60958.0,60957.0,0.32736204]
[1723292290670,0.001832,60958.0,60957.0,0.32936204]
[1723292291254,0.001832,60958.0,60957.0,0.24733704]
[1723292291610,0.001832,60958.0,60957.0,0.16663704]
[1723292291821,0.083855,60958.0,60957.0,0.24733704]
[1723292293208,0.083855,60958.0,60957.0,0.11703715]
[1723292293382,0.083855,60958.0,60957.0,0.25103339]
[1723292295318,0.001832,60958.0,60957.0,0.25103339]
[1723292296552,0.001832,60958.0,60957.0,0.11703715]
[1723292296793,0.001832,60958.0,60957.0,0.25085697]
[1723292297330,0.083855,60958.0,60957.0,0.25085697]
[1723292298049,0.247902,60958.0,60957.0,0.17015697]
[1723292298252,0.388502,60958.0,60957.0,0.17015697]
[1723292298498,0.552549,60958.0,60957.0,0.17015697]
[1723292298674,0.62623471,60958.0,60957.0,0.03633715]
[1723292298883,0.552549,60958.0,60957.0,0.0216632]
[1723292299131,0.65079997,60958.0,60957.0,0.0216632]
[1723292299294,0.62623377,60958.0,60957.0,0.0216632]
[1723292299514,0.62523377,60958.0,60957.0,0.0196632]
[1723292299697,0.246083,60955.0,60954.0,0.0196632]
[1723292299897,0.410139,60955.0,60954.0,0.0196632]
[1723292300100,0.246083,60955.0,60954.0,0.0196632]
[1723292300303,0.386683,60955.0,60954.0,0.0196632]
[1723292300533,0.386683,60955.0,60954.0,0.03250659]
[1723292300735,0.386683,60955.0,60954.0,0.0196632]
[1723292300947,0.388683,60955.0,60954.0,0.03350754]
[1723292301575,0.393683,60955.0,60954.0,0.03350754]
[1723292302450,0.557738,60955.0,60954.0,0.03350754]
[1723292302587,0.657737,60955.0,60954.0,0.001]
[1723292302807,0.75598797,60955.0,60954.0,0.001]
[1723292303026,0.657737,60955.0,60954.0,0.001]
[1723292303540,0.91997914,60955.0,60954.0,0.001]
[1723292303750,0.657737,60955.0,60954.0,0.001]
[1723292304175,0.78055072,60955.0,60954.0,0.0206632]
[1723292304349,0.657737,60955.0,60954.0,0.0206632]
[1723292304675,0.416182,60955.0,60954.0,0.0206632]
[1723292305059,0.416182,60955.0,60954.0,0.03351001]
[1723292305233,0.353082,60955.0,60954.0,0.10250966]
[1723292305434,0.353082,60955.0,60954.0,0.11535647]
[1723292305913,0.351082,60955.0,60954.0,0.11435647]
[1723292306090,0.351082,60955.0,60954.0,0.11535647]
[1723292306292,0.354082,60955.0,60954.0,0.11535647]
[1723292306494,0.349082,60955.0,60954.0,0.11535647]
[1723292306716,0.354082,60955.0,60954.0,0.11535647]
[1723292306933,0.351082,60955.0,60954.0,0.11435647]
[1723292307332,0.349082,60955.0,60954.0,0.11435647]
[1723292307531,0.514137,60955.0,60954.0,0.11435647]
[1723292307735,0.514137,60955.0,60954.0,0.03251001]
[1723292308003,0.350082,60955.0,60954.0,0.03251001]
[1723292308208,0.350082,60955.0,60954.0,0.0196632]
[1723292309767,0.39915072,60955.0,60954.0,0.0196632]
[1723292309996,0.514137,60955.0,60954.0,0.0196632]
[1723292310211,0.660137,60955.0,60954.0,0.0196632]
[1723292310408,0.70920572,60955.0,60954.0,0.0196632]
[1723292312505,0.660137,60955.0,60954.0,0.0196632]
[1723292313105,0.70920123,60955.0,60954.0,0.0196632]
[1723292313311,0.660137,60955.0,60954.0,0.0196632]
[1723292313564,0.246094,60952.0,60951.0,0.0009141]
[1723292313915,0.246094,60952.0,60951.0,0.03239756]
[1723292313916,0.556157,60952.0,60951.0,0.03239756]
[1723292314122,0.556157,60952.0,60951.0,0.0009141]
[1723292314324,0.556157,60952.0,60951.0,0.03239757]
[1723292314452,0.556157,60952.0,60951.0,0.0205773]
[1723292314660,0.556157,60952.0,60951.0,0.03239757]
[1723292315688,0.556157,60952.0,60951.0,0.01273437]
[1723292315891,0.556157,60952.0,60951.0,0.01473437]
[1723292316449,0.556157,60952.0,60951.0,0.03239757]
[1723292316592,0.557157,60952.0,60951.0,0.03239757]
[1723292317366,0.558157,60952.0,60951.0,0.01273437]
[1723292317562,0.557157,60952.0,60951.0,0.01273437]
[1723292317799,0.561157,60952.0,60951.0,0.03239757]
[1723292318573,0.561157,60952.0,60951.0,0.01273437]
[1723292319633,0.72522,60952.0,60951.0,0.03239757]
[1723292319889,0.80592,60952.0,60951.0,0.03239757]
[1723292320074,0.96973492,60952.0,60951.0,0.0205773]
[1723292320550,1.11879444,60952.0,60951.0,0.0205773]
[1723292320772,1.06873492,60952.0,60951.0,0.0205773]
[1723292321204,1.16286339,60952.0,60951.0,0.0205773]
[1723292321400,1.07273492,60952.0,60951.0,0.0215773]
[1723292321606,1.07273492,60952.0,60951.0,0.0205773]
[1723292321808,1.06473492,60952.0,60951.0,0.0205773]
[1723292322255,1.06873492,60952.0,60951.0,0.0205773]
[1723292322555,1.07273492,60952.0,60951.0,0.0215773]
[1723292322754,0.99203492,60952.0,60951.0,0.0215773]
[1723292322933,1.08173492,60952.0,60951.0,0.0225773]
[1723292323140,1.17978468,60952.0,60951.0,0.0129141]
[1723292323348,1.34384768,60952.0,60951.0,0.0129141]
[1723292323551,1.24579792,60952.0,60951.0,0.0129141]
[1723292323729,1.23779792,60952.0,60951.0,0.0119141]
[1723292324175,1.34884768,60952.0,60951.0,0.0129141]
[1723292324592,1.25079792,60952.0,60951.0,0.0129141]
[1723292326505,1.32429602,60952.0,60951.0,0.0129141]
[1723292326944,2.00429602,60952.0,60951.0,0.0129141]
[1723292327395,1.93079792,60952.0,60951.0,0.0129141]
[1723292327591,2.00429473,60952.0,60951.0,0.0129141]
[1723292329003,1.24359473,60952.0,60951.0,0.0225773]
[1723292329241,0.92313492,60952.0,60951.0,0.0225773]
[1723292329438,0.86003492,60952.0,60951.0,0.0225773]
[1723292331158,0.86086692,60952.0,60951.0,0.0225773]
[1723292331361,0.93436373,60952.0,60951.0,0.0225773]
[1723292332911,0.74605984,60952.0,60951.0,0.0225773]
[1723292333113,0.697052,60952.0,60951.0,0.0225773]
[1723292333302,0.697052,60952.0,60951.0,0.03440096]
[1723292333484,0.697052,60952.0,60951.0,0.0225773]
[1723292339391,0.74607294,60952.0,60951.0,0.0225773]
[1723292339595,0.697052,60952.0,60951.0,0.0225773]
[1723292340431,0.74607294,60952.0,60951.0,0.0225773]
[1723292341289,0.697052,60952.0,60951.0,0.0225773]
[1723292341490,0.697052,60952.0,60951.0,0.0200773]
[1723292342302,0.697052,60952.0,60951.0,0.0004141]
[1723292342546,0.697052,60952.0,60951.0,0.0200773]
[1723292342547,0.74607294,60952.0,60951.0,0.0200773]
[1723292342979,0.697052,60952.0,60951.0,0.0200773]
[1723292343115,0.697052,60952.0,60951.0,0.0209925]
[1723292343538,0.77058341,60952.0,60951.0,0.0209925]
[1723292343740,1.45509388,60952.0,60951.0,0.0209925]
[1723292343968,1.45519837,60952.0,60951.0,0.0209925]
[1723292344386,1.357052,60952.0,60951.0,0.0209925]
[1723292344609,1.56100435,60952.0,60951.0,0.0209925]
[1723292345506,1.438452,60952.0,60951.0,0.0209925]
[1723292345979,0.778452,60952.0,60951.0,0.0209925]
[1723292346416,0.859152,60952.0,60951.0,0.0209925]
[1723292347522,1.579152,60952.0,60951.0,0.0209925]
[1723292349516,0.778452,60952.0,60951.0,0.0209925]
[1723292349730,1.599152,60952.0,60951.0,0.0209925]
[1723292351035,1.76296692,60952.0,60951.0,0.0209925]
[1723292351229,2.05284223,60952.0,60951.0,0.0013293]
[1723292351428,1.97214223,60952.0,60951.0,0.0113293]
[1723292351633,2.05284223,60952.0,60951.0,0.0113293]
[1723292352149,2.05284352,60952.0,60951.0,0.0113293]
[1723292352817,2.05306856,60952.0,60951.0,0.0113293]
[1723292353734,2.05306856,60952.0,60951.0,0.0013293]
[1723292353889,2.05306856,60952.0,60951.0,0.0113293]
[1723292354693,2.05306856,60952.0,60951.0,0.0013293]
[1723292355223,2.05306856,60952.0,60951.0,0.0113293]
[1723292355941,2.05334635,60952.0,60951.0,0.0113293]
[1723292356141,2.05334635,60952.0,60951.0,0.0013293]
[1723292359387,1.98792992,60952.0,60951.0,0.0013293]
[1723292359552,2.05349512,60952.0,60951.0,0.0013293]
[1723292363385,1.98792992,60952.0,60951.0,0.0013293]
[1723292363592,2.05320644,60952.0,60951.0,0.0013293]
[1723292364588,1.98792992,60952.0,60951.0,0.0013293]
[1723292364831,2.05322044,60952.0,60951.0,0.0013293]
[1723292369485,2.20051475,60952.0,60951.0,0.0013293]
[1723292369859,2.20051221,60952.0,60951.0,0.0013293]
[1723292370090,1.98792992,60952.0,60951.0,0.0013293]
[1723292370266,2.05414123,60952.0,60951.0,0.0013293]
[1723292373923,2.05429069,60952.0,60951.0,0.0013293]
[1723292374124,2.05429056,60952.0,60951.0,0.0013293]
[1723292374866,2.21844026,60952.0,60951.0,0.0013293]
[1723292375068,2.73998377,60952.0,60951.0,0.0013293]
[1723292375276,2.67721314,60952.0,60951.0,0.0013293]
[1723292375907,2.84127614,60952.0,60951.0,0.0013293]
[1723292376107,2.83227614,60952.0,60951.0,0.0013293]
[1723292376520,2.83327614,60952.0,60951.0,0.0019152]
[1723292376927,2.84727614,60952.0,60951.0,0.0019152]
[1723292377128,2.83475346,60952.0,60951.0,0.0009152]
[1723292377280,2.83475346,60952.0,60951.0,0.0019152]
[1723292377486,3.01290316,60952.0,60951.0,0.0019152]
[1723292378082,2.84875346,60952.0,60951.0,0.0019152]
[1723292380681,2.67802192,60952.0,60951.0,0.0019152]
[1723292380963,2.72799347,60952.0,60951.0,0.0019152]
[1723292381302,2.62386063,60952.0,60951.0,0.0019152]
[1723292381507,2.72799028,60952.0,60951.0,0.0019152]
[1723292384155,2.55626292,60952.0,60951.0,0.0019152]
[1723292384353,2.72763116,60952.0,60951.0,0.0019152]
[1723292384552,3.38617117,60952.0,60951.0,0.0019152]
[1723292384776,3.38616863,60952.0,60951.0,0.0019152]
[1723292385576,3.28221536,60952.0,60951.0,0.0019152]
[1723292386381,3.3861606,60952.0,60951.0,0.0019152]
[1723292386621,3.38616023,60952.0,60951.0,0.0019152]
[1723292387099,3.38618581,60952.0,60951.0,0.0019152]
[1723292387323,3.38618578,60952.0,60951.0,0.0019152]
[1723292387556,3.28221536,60952.0,60951.0,0.0019152]
[1723292387787,3.21480292,60952.0,60951.0,0.0019152]
[1723292388014,3.38623688,60952.0,60951.0,0.0019152]
[1723292389083,3.28223363,60952.0,60951.0,0.0019152]
[1723292389448,3.38627419,60952.0,60951.0,0.0019152]
[1723292389649,3.28223363,60952.0,60951.0,0.0019152]
[1723292390516,3.38623108,60952.0,60951.0,0.0019152]
[1723292391405,3.16914803,60952.0,60951.0,0.0019152]
[1723292393780,3.2726674,60952.0,60951.0,0.0019152]
[1723292394332,3.16914803,60952.0,60951.0,0.0019152]
[1723292394565,3.27267384,60952.0,60951.0,0.0019152]
[1723292394770,3.10170992,60952.0,60951.0,0.0019152]
[1723292394971,3.27214694,60952.0,60951.0,0.0019152]
[1723292395193,3.44663344,60952.0,60951.0,2e-07]
[1723292395367,0.902467,60944.0,60943.0,0.090052]
[1723292395563,2.04391664,60944.0,60943.0,0.090052]
[1723292395788,2.04391664,60944.0,60943.0,0.10223561]
[1723292395942,2.04391664,60944.0,60943.0,0.090052]
[1723292396277,2.06963305,60944.0,60943.0,0.090052]
[1723292396606,2.08363305,60944.0,60943.0,0.091052]
[1723292396811,2.09763305,60944.0,60943.0,0.091052]
[1723292398379,2.03069833,60944.0,60943.0,0.091052]
[1723292398536,2.09747994,60944.0,60943.0,0.091052]
[1723292400882,2.09754245,60944.0,60943.0,0.091052]
[1723292401090,2.1077726,60944.0,60943.0,0.091052]
[1723292401299,2.10771227,60944.0,60943.0,0.091052]
[1723292401938,2.15353823,60944.0,60943.0,0.091052]
[1723292403999,2.08675444,60944.0,60943.0,0.091052]
[1723292404170,2.10793844,60944.0,60943.0,0.091052]
[1723292405015,2.10792723,60944.0,60943.0,0.091052]
[1723292407580,2.08221082,60944.0,60943.0,0.091052]
[1723292407983,2.08216743,60944.0,60943.0,0.091052]
[1723292410956,2.24631713,60944.0,60943.0,0.091052]
[1723292411358,2.08216743,60944.0,60943.0,0.091052]
[1723292411533,2.08213942,60944.0,60943.0,0.091052]
[1723292411741,2.10789666,60944.0,60943.0,0.091052]
[1723292412379,2.04096931,60944.0,60943.0,0.010152]
[1723292412551,2.22862845,60944.0,60943.0,0.010152]
[1723292412754,2.39409891,60944.0,60943.0,0.010152]
[1723292413378,2.39409891,60944.0,60943.0,0.088452]
[1723292414193,2.22862845,60944.0,60943.0,0.088452]
[1723292414416,2.39434874,60944.0,60943.0,0.088452]
[1723292414780,2.22862845,60944.0,60943.0,0.088452]
[1723292415116,2.22932455,60944.0,60943.0,0.088452]
[1723292415672,2.22932444,60944.0,60943.0,0.088452]
[1723292415899,2.22932444,60944.0,60943.0,0.205538]
[1723292416618,2.22517757,60944.0,60943.0,0.205538]
[1723292417101,2.22517757,60944.0,60943.0,0.127238]
[1723292417574,2.10495757,60944.0,60943.0,0.127238]
[1723292418007,2.17983616,60944.0,60943.0,0.127238]
[1723292418701,2.17952344,60944.0,60943.0,0.127238]
[1723292421510,2.17974398,60944.0,60943.0,0.127238]
[1723292422101,2.01525207,60944.0,60943.0,0.127238]
[1723292422306,2.17997951,60944.0,60943.0,0.127238]
[1723292423802,2.18026164,60944.0,60943.0,0.127238]
[1723292424849,2.09956164,60944.0,60943.0,0.127238]
[1723292425054,2.18026164,60944.0,60943.0,0.127238]
[1723292425613,2.11605507,60944.0,60943.0,0.127238]
[1723292425842,2.18012525,60944.0,60943.0,0.127238]
[1723292426184,2.01525207,60944.0,60943.0,0.127238]
[1723292426329,2.17966815,60944.0,60943.0,0.010152]
[1723292432877,2.18019557,60944.0,60943.0,0.010152]
[1723292436445,2.01525207,60944.0,60943.0,0.010152]
[1723292436595,2.1800209,60944.0,60943.0,0.010152]
[1723292437005,2.18002116,60944.0,60943.0,0.010152]
[1723292438361,2.09932116,60944.0,60943.0,0.010152]
[1723292438532,2.18002116,60944.0,60943.0,0.010152]
[1723292440001,2.01525207,60944.0,60943.0,0.010152]
[1723292440202,2.18031541,60944.0,60943.0,0.010152]
[1723292442324,1.96234602,60944.0,60943.0,0.010152]
[1723292442662,2.04438802,60944.0,60943.0,0.010152]
[1723292447436,2.04474389,60944.0,60943.0,0.010152]
[1723292447932,2.04482099,60944.0,60943.0,0.010152]
[1723292450831,1.98022507,60944.0,60943.0,0.010152]
[1723292451035,2.04481205,60944.0,60943.0,0.010152]
[1723292451443,2.04564405,60944.0,60943.0,0.010152]
[1723292452200,2.14687693,60944.0,60943.0,0.010152]
[1723292454574,2.14648101,60944.0,60943.0,0.010152]
[1723292458022,2.1464678,60944.0,60943.0,0.010152]
[1723292458650,1.98105707,60944.0,60943.0,0.010152]
[1723292458815,2.14649506,60944.0,60943.0,0.010152]
[1723292459951,2.14631957,60944.0,60943.0,0.010152]
[1723292460428,2.06561957,60944.0,60943.0,0.010152]
[1723292460690,2.14631957,60944.0,60943.0,0.010152]
[1723292462998,1.98105707,60944.0,60943.0,0.010152]
[1723292463248,2.14602707,60944.0,60943.0,0.010152]
[1723292463978,2.14602707,60944.0,60943.0,0.160452]
[1723292464451,2.14602707,60944.0,60943.0,0.150452]
[1723292465592,2.14547613,60944.0,60943.0,0.150452]
[1723292467493,2.72608013,60944.0,60943.0,0.150452]
[1723292467727,2.72655277,60944.0,60943.0,0.150452]
[1723292468195,2.7267347,60944.0,60943.0,0.150452]
[1723292471201,2.72652874,60944.0,60943.0,0.150452]
[1723292473504,2.72652874,60944.0,60943.0,0.160452]
[1723292473505,2.64582874,60944.0,60943.0,0.160452]
[1723292473705,1.88103576,60944.0,60943.0,0.160452]
[1723292473911,1.88103576,60944.0,60943.0,0.150452]
[1723292474159,1.88103576,60944.0,60943.0,0.160452]
[1723292474534,1.88103576,60944.0,60943.0,0.150452]
[1723292474535,1.81697207,60944.0,60943.0,0.150452]
[1723292474743,1.8808881,60944.0,60943.0,0.150452]
[1723292474944,1.81697207,60944.0,60943.0,0.150452]
[1723292475148,1.79989377,60944.0,60943.0,0.160452]
[1723292475365,1.79989377,60944.0,60943.0,0.150452]
[1723292475366,1.88059377,60944.0,60943.0,0.150452]
[1723292478165,1.81697207,60944.0,60943.0,0.150452]
[1723292478390,1.88057988,60944.0,60943.0,0.150452]
[1723292478598,1.90629592,60944.0,60943.0,0.150452]
[1723292478798,1.84268811,60944.0,60943.0,0.150452]
[1723292479005,1.90646782,60944.0,60943.0,0.150452]
[1723292479385,2.07055282,60944.0,60943.0,0.150452]
[1723292479590,2.07055282,60944.0,60943.0,0.087852]
[1723292480360,1.98985282,60944.0,60943.0,0.087852]
[1723292480567,2.07055282,60944.0,60943.0,0.087852]
[1723292481696,2.07029542,60944.0,60943.0,0.087852]
[1723292485350,2.07008199,60944.0,60943.0,0.087852]
[1723292485924,1.98938199,60944.0,60943.0,0.087852]
[1723292486129,2.07008199,60944.0,60943.0,0.087852]
[1723292488084,2.07008199,60944.0,60943.0,0.010152]
[1723292488669,2.00677311,60944.0,60943.0,0.010152]
[1723292489004,2.07011524,60944.0,60943.0,0.010152]
[1723292489367,2.07012033,60944.0,60943.0,0.010152]
[1723292493549,2.05989018,60944.0,60943.0,0.010152]
[1723292495293,2.05989018,60944.0,60943.0,0.085952]
[1723292495959,2.05987267,60944.0,60943.0,0.085952]
[1723292499299,1.99654296,60944.0,60943.0,0.085952]
[1723292499501,2.05972725,60944.0,60943.0,0.085952]
[1723292499810,1.99654296,60944.0,60943.0,0.085952]
[1723292500018,2.05972657,60944.0,60943.0,0.085952]
[1723292501210,1.99654296,60944.0,60943.0,0.085952]
[1723292501417,2.05988756,60944.0,60943.0,0.085952]
[1723292502595,1.97918756,60944.0,60943.0,0.149552]
[1723292502818,2.05988756,60944.0,60943.0,0.149552]
[1723292503701,1.97918756,60944.0,60943.0,0.149552]
[1723292504055,2.05988756,60944.0,60943.0,0.149552]
[1723292506504,2.05980785,60944.0,60943.0,0.149552]
[1723292509540,2.05980785,60944.0,60943.0,0.1692152]
[1723292509541,1.32303793,60944.0,60943.0,0.1692152]
[1723292509730,1.134057,60944.0,60943.0,0.1692152]
[1723292509953,0.404057,60944.0,60943.0,0.1692152]
[1723292510297,0.51290473,60944.0,60943.0,0.1682152]
[1723292510478,0.225972,60944.0,60943.0,0.1682152]
[1723292510682,0.29763493,60944.0,60943.0,0.17977867]
[1723292510994,0.31063493,60944.0,60943.0,0.17977867]
[1723292511432,0.28605702,60944.0,60943.0,0.17977867]
[1723292511633,0.38605702,60944.0,60943.0,0.17977867]
[1723292512039,0.324972,60944.0,60943.0,0.17877867]
[1723292512265,0.335972,60944.0,60943.0,0.17977867]
[1723292512825,0.476057,60944.0,60943.0,0.17877867]
[1723292513067,0.72045524,60944.0,60943.0,0.1692152]
[1723292513240,0.72045524,60944.0,60943.0,0.1702152]
[1723292513241,0.73245524,60944.0,60943.0,0.1702152]
[1723292513596,0.87754024,60944.0,60943.0,0.1682152]
[1723292513887,0.96824024,60944.0,60943.0,0.1692152]
[1723292514060,0.96524024,60944.0,60943.0,0.1692152]
[1723292514466,0.97724024,60944.0,60943.0,0.1702152]
[1723292514790,0.98976802,60944.0,60943.0,0.1692152]
[1723292515242,0.98276802,60944.0,60943.0,0.1682152]
[1723292515659,0.99476802,60944.0,60943.0,0.1692152]
[1723292516061,0.99676802,60944.0,60943.0,0.1692152]
[1723292516282,0.98276802,60944.0,60943.0,0.1682152]
[1723292516483,0.89665692,60944.0,60943.0,0.1692152]
[1723292516686,0.91065692,60944.0,60943.0,0.1702152]
[1723292520239,0.74657192,60944.0,60943.0,0.1702152]
[1723292520870,0.66587192,60944.0,60943.0,0.1702152]
[1723292521618,0.73940239,60944.0,60943.0,0.1702152]
[1723292523721,0.66587192,60944.0,60943.0,0.1702152]
[1723292523889,0.73938515,60944.0,60943.0,0.1702152]
[1723292524499,0.66587192,60944.0,60943.0,0.1702152]
[1723292525575,0.74657192,60944.0,60943.0,0.1702152]
[1723292526863,1.00866264,60944.0,60943.0,0.1702152]
[1723292527038,0.84457764,60944.0,60943.0,0.1702152]
[1723292527547,1.00866264,60944.0,60943.0,0.1702152]
[1723292527701,0.91065692,60944.0,60943.0,0.1702152]
[1723292528975,1.00862137,60944.0,60943.0,0.1702152]
[1723292529704,0.74657192,60944.0,60943.0,0.1702152]
[1723292529954,0.84454428,60944.0,60943.0,0.1702152]
[1723292530124,0.66587192,60944.0,60943.0,0.1702152]
[1723292530323,0.73935991,60944.0,60943.0,0.1702152]
[1723292530994,0.90344478,60944.0,60943.0,0.1702152]
[1723292531302,0.73935978,60944.0,60943.0,0.1702152]
[1723292531745,0.90344478,60944.0,60943.0,0.1702152]
[1723292532131,0.73935978,60944.0,60943.0,0.1702152]
[1723292532663,0.90344478,60944.0,60943.0,0.1702152]
[1723292534498,0.82995692,60944.0,60943.0,0.1702152]
[1723292534858,0.90344478,60944.0,60943.0,0.1702152]
[1723292535389,0.9034459,60944.0,60943.0,0.1702152]
[1723292536581,0.92794222,60944.0,60943.0,0.1702152]
[1723292536807,0.82995692,60944.0,60943.0,0.1702152]
[1723292537424,0.95243855,60944.0,60943.0,0.1702152]
[1723292537627,0.95243855,60944.0,60943.0,0.160552]
[1723292537987,0.95243855,60944.0,60943.0,0.1702152]
[1723292538644,1.01552924,60944.0,60943.0,0.1702152]
[1723292538857,0.95243855,60944.0,60943.0,0.1702152]
[1723292539525,0.82995692,60944.0,60943.0,0.1702152]
[1723292540667,1.01540876,60944.0,60943.0,0.1702152]
[1723292541259,1.01541456,60944.0,60943.0,0.1702152]
[1723292542356,0.95245379,60944.0,60943.0,0.1702152]
[1723292542612,0.89297626,60944.0,60943.0,0.1702152]
[1723292543235,0.72889126,60944.0,60943.0,0.1702152]
[1723292543713,0.89297626,60944.0,60943.0,0.18077629]
[1723292544210,0.89285621,60944.0,60943.0,0.1702152]
[1723292544660,0.72877121,60944.0,60943.0,0.1702152]
[1723292545067,0.72877121,60944.0,60943.0,0.18077629]
[1723292545274,0.72877121,60944.0,60943.0,0.16111309]
[1723292545480,0.72877121,60944.0,60943.0,0.1702152]
[1723292545676,0.89285621,60944.0,60943.0,0.18077629]
[1723292546001,0.337972,60944.0,60943.0,0.1702152]
[1723292546478,0.337972,60944.0,60943.0,0.18077629]
[1723292546680,0.502057,60944.0,60943.0,0.18077629]
[1723292547722,0.502057,60944.0,60943.0,0.1702152]
[1723292548035,0.502057,60944.0,60943.0,0.18077606]
[1723292553489,0.55113309,60944.0,60943.0,0.18077606]
[1723292553844,0.502057,60944.0,60943.0,0.18077606]
[1723292554270,0.55112891,60944.0,60943.0,0.18077606]
[1723292555020,0.38704391,60944.0,60943.0,0.18077606]
[1723292555745,0.502057,60944.0,60943.0,0.1702152]
[1723292556122,0.337972,60944.0,60943.0,0.1702152]
[1723292556354,0.337972,60944.0,60943.0,0.18077526]
[1723292557380,0.502057,60944.0,60943.0,0.18077526]
[1723292557636,0.57566486,60944.0,60943.0,0.16111206]
[1723292557858,0.41157986,60944.0,60943.0,0.18077526]
[1723292558085,0.41157986,60944.0,60943.0,0.1702152]
[1723292558958,0.39757986,60944.0,60943.0,0.1692152]
[1723292559416,0.40557986,60944.0,60943.0,0.18077526]
[1723292559632,0.39357986,60944.0,60943.0,0.17977526]
[1723292559813,0.40557986,60944.0,60943.0,0.18077526]
[1723292560025,0.27652186,60944.0,60943.0,0.18077526]
[1723292560158,0.202914,60944.0,60943.0,0.18077526]